Cogmind - Beta 9.1 @@@ ROGUE MODE // 2019.11.02 @ 23:28:45 // Halloween2019/Abominations Player: Trione Result: Destroyed by Lesser Abomination with Heavy EM Pulse Gun Performance ------------- Evolutions (1) 500 Regions Visited (2) 400 Robots Destroyed (12) 60 Value Destroyed (725) 725 Prototype IDs (0) 0 Alien Tech Used (0) 0 Bonus (0) 0 TOTAL SCORE: 1685 Bonus ------- None Cogmind --------- Core Integrity 0/400 Matter 99/300 Energy 100/100 System Corruption 2% Temperature Cool (0) Location -9/Materials Parts ------- Power (1) Propulsion (2) Wheel Wheel Utility (4) Small Storage Unit Weapon (2) Grenade Launcher Inventory (6) Light Treads Peak State ------------ Power Light Ion Engine Propulsion Wheel Compact Wheel Utility Small Storage Unit Light Armor Plating Medium Armor Plating Weapon Assault Rifle Assault Rifle Inventory Light Ion Engine Light Treads Light Treads Small Laser Light Assault Rifle Grenade Launcher [Rating: 9] Favorites ----------- Power Light Ion Engine Engine Light Ion Engine Propulsion Wheel Treads Light Treads Wheel Wheel Utility Small Storage Unit Storage Small Storage Unit Protection Medium Armor Plating Weapon Assault Rifle Energy Gun Small Laser Ballistic Gun Assault Rifle Launcher Grenade Launcher Build | -11 -10 -9 ------- Run | Scr Mat Mat Slots Evolved 2 | . . 2 Power . | . . . Propulsion . | . . . Utility 2 | . . 2 Weapon . | . . . Parts Attached 17 | 6 . 11 Power 2 | 1 . 1 Engine 2 | 1 . 1 Core . | . . . Reactor . | . . . Propulsion 5 | 2 . 3 Treads 1 | . . 1 Leg . | . . . Wheel 4 | 2 . 2 Hover . | . . . Flight . | . . . Utility 3 | 1 . 2 Device . | . . . Storage 1 | 1 . . Processor . | . . . Hackware . | . . . Protection 2 | . . 2 Artifact . | . . . Weapon 7 | 2 . 5 Energy Gun 2 | 1 . 1 Energy Cannon . | . . . Ballistic Gun 3 | 1 . 2 Ballistic Cannon . | . . . Launcher 2 | . . 2 Special Weapon . | . . . Impact Weapon . | . . . Slashing Weapon . | . . . Piercing Weapon . | . . . Special Melee Weapon . | . . . Unidentified Prototypes . | . . . Parts Lost 11 | . . 11 Power 2 | . . 2 Propulsion 3 | . . 3 Utility 2 | . . 2 Weapon 4 | . . 4 Highest Loss Streak 11 | . . 11 Average Slot Usage (%) 76 | . 85 67 Engine 11 | . 14 8 Wheel 22 | . 28 17 Storage 12 | . 14 11 Protection 5 | . . 10 Energy Gun 8 | . 14 3 Ballistic Gun 14 | . 14 14 Naked Turns . | . . . Heaviest Build 21 | 10 10 21 Greatest Support 26 | 26 26 26 Greatest Overweight (x) 1 | . . 1 Average Overweight (x) . | . . . Largest Inventory Capacity 6 | 6 6 6 Average Capacity 5 | 5 6 6 Most Carried 6 | 6 6 6 Average Carried 5 | 3 5 4 Final Capacity 6 | 6 6 6 Final Carried 6 | 6 6 1 Class Distribution -------------------- 100% | Mutant Dominant Class ---------------- Mutant | -10/Materials Mutant | -9/Materials Resources | -11 -10 -9 ----------- Run | Scr Mat Mat Matter Collected 449 | 228 71 150 Remotely . | . . . Salvage Created 458 | . 74 384 Parts 46 | . 4 42 Haulers Intercepted . | . . . Recyclers Shooed . | . . . Parts Field Recycled . | . . . Retrieved Matter . | . . . Parts Self-Destructed . | . . . Prevented . | . . . Kills | -11 -10 -9 ------- Run | Scr Mat Mat Combat Hostiles Destroyed 12 | . 2 10 Guns 10 | . 2 8 AOE 2 | . . 2 Classes Destroyed 2 | . 1 1 Sentry 1 | . . 1 Abomination 11 | . 2 9 Best Kill Streak 4 | . 1 4 Combat Bots Only 4 | . 1 4 Max Kills in Single Turn 1 | . 1 1 Gunslinging . | . . . Exploded 1 | . . 1 Melee . | . . . Uniques/NPCs Destroyed . | . . . Combat | -11 -10 -9 -------- Run | Scr Mat Mat Damage Taken 1690 | . 240 1450 Core 463 | . 60 403 Absorbed by Shields . | . . . Core Remaining (%) 88 | 100 76 . Volleys Fired 66 | . 13 53 Largest 2 | . 2 2 Hottest 60 | . 60 40 Shots Fired 111 | . 26 85 Gun 101 | . 26 75 Cannon . | . . . Launcher 10 | . . 10 Special . | . . . Kinetic 83 | . 13 70 Thermal 18 | . 13 5 Explosive 10 | . . 10 Electromagnetic . | . . . Robot Hit Streak 20 | . 13 20 Robot Miss Streak 1 | . 1 1 Penetration Max . | . . . Secondary Targets 1 | . . 1 Max Gunslinging Chain 1 | . . 1 Shots Hit Robots 89 | . 23 66 Core Hits 40 | . 6 34 Critical Hits 1 | . . 1 Critical Kills 1 | . . 1 Critical Parts Destroyed . | . . . Melee Attacks . | . . . Impact . | . . . Slashing . | . . . Piercing . | . . . Sneak Attacks . | . . . Combat Hostiles . | . . . Follow-up Attacks . | . . . Damage Inflicted 1526 | . 298 1228 Guns 1055 | . 298 757 Cannons . | . . . Explosions 471 | . . 471 Melee . | . . . Ramming . | . . . Kinetic 830 | . 138 692 Thermal 225 | . 160 65 Explosive 471 | . . 471 Electromagnetic . | . . . Impact . | . . . Slashing . | . . . Piercing . | . . . Highest Corruption 2 | . . 2 Average Corruption 1 | . . 1 Corruption Purged . | . . . Overload Shots . | . . . Overflow Damage 15 | . . 15 Projectiles . | . . . Explosions 15 | . . 15 Melee . | . . . Knockbacks . | . . . Impact . | . . . Kinetic . | . . . Secondary . | . . . Self-Inflicted Damage 20 | . . 20 Shots 2 | . . 2 Rammed . | . . . Targets Rammed . | . . . Kicked . | . . . Crushed . | . . . Highest Temperature 460 | . 1 460 Average Temperature 125 | . 1 144 Received Heat Transfer 244 | . 7 237 Siege Activations . | . . . Robots Corrupted . | . . . Combat Hostiles . | . . . Parts Fried . | . . . Impact Corruptions . | . . . Robots Melted . | . . . Combat Hostiles . | . . . Parts Melted . | . . . Heat Transferred 102 | . 72 30 Parts Sabotaged . | . . . Parts Stolen . | . . . Parts Stripped . | . . . Power Chain Reactions . | . . . Missiles Intercepted . | . . . Alert | -11 -10 -9 ------- Run | Scr Mat Mat Peak Influence 65 | . 15 65 Average Influence 20 | . 7 37 Maximum Alert Level . | . . . Low Security (%) 100 | . . . Level 1 . | . . . Level 2 . | . . . Level 3 . | . . . Level 4 . | . . . Level 5 . | . . . High Security . | . . . Max Security . | . . . Squads Dispatched 7 | . 4 3 Investigation 3 | . 2 1 Extermination . | . . . Reinforcement 2 | . 1 1 Assault 2 | . 1 1 Garrison . | . . . Intercept . | . . . Construction Impeded . | . . . Haulers Reinforced . | . . . Stealth | -11 -10 -9 --------- Run | Scr Mat Mat Distress Signals 8 | . 1 7 Communications Jammed . | . . . Distress Signals . | . . . Times Spotted 20 | . 7 13 Peak Tracking Total 6 | . 3 6 Tactical Retreats 3 | . 2 1 Traps | -11 -10 -9 ------- Run | Scr Mat Mat Traps Triggered . | . . . Indirectly . | . . . Trap Hack Attempts . | . . . Triggered . | . . . Disarmed . | . . . Reprogrammed . | . . . Reused . | . . . Traps Extracted . | . . . Installed . | . . . Triggered . | . . . Machines | -11 -10 -9 ---------- Run | Scr Mat Mat Machines Disabled 2 | . . 2 Max in Single Turn 1 | . . 1 Machines Sabotaged . | . . . Garrisons Compromised . | . . . Overloaded Fab Kills . | . . . Fab Network Shutdowns . | . . . Hacking | -11 -10 -9 --------- Run | Scr Mat Mat Machines Accessed 2 | . 2 . Terminals 2 | . 2 . Fabricators . | . . . Repair Stations . | . . . Recycling Units . | . . . Scanalyzers . | . . . Garrison Access . | . . . Total Hacks 4 | . 4 . Successful 4 | . 4 . Failed . | . . . Catastrophic . | . . . Database Lockouts . | . . . Manual 4 | . 4 . Terminals 4 | . 4 . Fabricators . | . . . Repair Stations . | . . . Recycling Units . | . . . Scanalyzers . | . . . Garrison Access . | . . . Terminal Hacks 2 | . 2 . Zone Layout 2 | . 2 . Fabricator Hacks . | . . . Repair Station Hacks . | . . . Recycling Unit Hacks . | . . . Scanalyzer . | . . . Garrison Access Hacks . | . . . Unauthorized Hacks 4 | . 4 . Terminals 2 | . 2 . Track 2 | . 2 . Fabricators . | . . . Repair Stations . | . . . Recycling Units . | . . . Scanalyzers . | . . . Garrison Access . | . . . Data Cores Recovered . | . . . Used . | . . . Hacking Detections 1 | . 1 . Full Trace Events . | . . . Feedback Events . | . . . Feedback Blocked . | . . . Robot Schematics Acquired . | . . . Robots Built . | . . . Matter . | . . . Time . | . . . Total Robot Build Rating . | . . . Part Schematics Acquired . | . . . Parts Built . | . . . Matter . | . . . Time . | . . . Total Part Build Rating . | . . . Parts Repaired . | . . . Time . | . . . Parts Recycled . | . . . Recycled Matter . | . . . Retrieved Matter . | . . . Retrieved Components . | . . . Parts Scanalyzed . | . . . Part Schematics Acquired . | . . . Parts Damaged . | . . . Bothacking | -11 -10 -9 ------------ Run | Scr Mat Mat Used RIF Installer . | . . . Robots Hacked . | . . . Non-combat . | . . . Combat . | . . . Robot Hacks Applied . | . . . Relay Couplers Released . | . . . Robots Rewired . | . . . Allies Hacked . | . . . Hacks Repelled . | . . . Allies | -11 -10 -9 -------- Run | Scr Mat Mat Total Allies . | . . . Largest Group . | . . . Highest-Rated Group . | . . . Highest-Rated Ally . | . . . Total Orders . | . . . Ally Attacks . | . . . Total Damage . | . . . Kills . | . . . Allies Corrupted . | . . . Allies Melted . | . . . Intel | -11 -10 -9 ------- Run | Scr Mat Mat Robot Analysis Total . | . . . Derelict Logs Recovered . | . . . Drone Launches . | . . . Drone Recoveries . | . . . Exploration | -11 -10 -9 ------------- Run | Scr Mat Mat Turns Passed 675 | 57 307 311 Spaces Moved 389 | 40 204 145 Core 10 | 1 . 9 Treads 1 | . . 1 Legs . | . . . Wheels 378 | 39 204 135 Hover . | . . . Flight . | . . . Fastest Speed 50 | 50 90 80 Average Speed 90 | 89 90 90 Slowest Speed 160 | 100 90 160 Overloaded Moves . | . . . Propulsion Burnouts . | . . . Robots Hopped . | . . . Cave-ins Triggered . | . . . Exploration Rate (%) 20 | 2 34 26 Regions Visited 2 Branch Regions . Pre-discovered Areas . | . . . Known Exits Taken . | . . . Unknown Exits Taken 2 | 1 1 . Scrap Searched . | . . . Spaces Dug . | . . . Terrain Destroyed 27 | . . 27 Melee . | . . . Projectile . | . . . AOE 27 | . . 27 Actions | -11 -10 -9 --------- Run | Scr Mat Mat Total 580 | 57 302 221 Wait 99 | 6 82 11 Move 387 | 39 203 145 Hop . | . . . Pick Up 8 | 6 2 . Fast Attach 10 | 6 . 4 Attach 6 | . . 6 Detach 1 | . . 1 Swap 1 | . . 1 Drop 2 | . 2 . Fire 66 | . 13 53 Melee . | . . . Ram . | . . . Kick . | . . . Crush . | . . . Escape Stasis . | . . . Rewire . | . . . Trap . | . . . Miscellaneous . | . . . Route ------- -11/Scrapyard -10/Materials -9/Materials History --------- Turn | Location | Event 22 | -11/Scrapyard | Discovered new exit (range 15) 58 | -11/Scrapyard | Entered Materials 302 | -10/Materials | Build established: Mutant 349 | -10/Materials | Discovered new exit (range 15) 365 | -10/Materials | Entered another Materials area 365 | -9/Materials | Evolved 2 slots: Utility x2 586 | -9/Materials | Core integrity fell below 50% 649 | -9/Materials | Core integrity fell below 20% 656 | -9/Materials | Lost 11 parts (2p3n2u4w) 676 | -9/Materials | Destroyed by Lesser Abomination with Heavy EM Pulse Gun Last Messages --------------- 00629_ Destroyed Aluminum Leg. 00630_ Hungry Anomaly eats Autogun. 00631_ Lesser Abomination destroyed. 00635_ The unstable cave ceiling collapses. 00641_ Acquired 30 matter. 00643_ Acquired Wheel. 00646_ The unstable cave ceiling collapses. 00650_ Acquired Wheel. 00652_ Frozen by Ice Anomaly. 00654_ The unstable cave ceiling collapses. 00657_ Hungry Anomaly eats Ion Engine. 00658_ Hungry Anomaly eats Imp. Heat Sink. 00659_ Hungry Anomaly eats Lgt. Ion Engine. 00659_ Electrolysis Chamber disabled. 00660_ Hungry Anomaly eats Heat Sink. 00661_ Hungry Anomaly eats Aluminum Leg. 00665_ Destroyed Weight Redist. System. 00666_ Lesser Abomination absorbs Terrain Scan Processor. 00673_ Electrolysis Chamber disabled. 00674_ Frozen by Ice Anomaly. Map ----- +----------------------------------------------------+ | ???????????????????????# | | ???????????????????????? | | ?????????????????????? "? % | | ?????????????????????? " "###+##### | | ????????????????????? "" #?# | | ?????????????????????? "" """ #?# """ | | ???????????????????####"" """ " " #?# """ | | ?????????????????""" " """ "T" ### """ | | ?????????????????" # """ # | | ???????????????? % # % / "" | | ???????????????? % # % ! " "" | | ???????????????? " ###+#######"" " S | | ???????????????# " # # " " | | ???????????????# " #"S %#"" " "###### | | ???????????????# " #""" ""T ""#?????## | | ????????????????? " %#%"" """ "#???????# | | ??????????????????????##" # %% " "#???????# | | ??????????????????????# # % # """"""????????# | | ??????????????? ?????#"# %##############???????# | | ?????????????? ???##"T # % #???????# | | ?????????????? ??# "#% %# " #???????# | | ????????????? % %%??# # + #???????# | | ????????????+ %% ## # %# #???????# | | ????????????# " # n # #???????? | | ????????????# ## # # """"""""##???????? | | ????????????? ????## #@ %# """" #????????? | | ?????????????????????# # # " #????????? | | ????????????########## # # " #????????? | | ??????????? # + " ####????????? | | ??????????? ##### # ###???????????? | | ??????????? # A # #?????????????? | | ??????????? % #?????????????? | | ?????????????"" """ ### #######?????????????? | | ??????????????? "" # ???????????????????? | | ??????????????? """ # "" " #??????????????????? | | ???????????????% % # """ """ #??????????????????? | | ???????????????#+##"# """ """ #??????????????????? | | ??????????????????# # #??????????????????? | | ??????????????????### #??????????????????? | | ????????????????????? #??????????????????? | | ?????????????????????? % ?????????????????????? | | ??????????????????????####???????????????????????? | | ?????????????????????????????????????????????????? | | ?????????????????????????????????????????????????? | | ?????????????????????????????????????????????????? | | ?????????????????????????????????????????????????? | | ?????????????????????????????????????????????????? | | ?????????????????????????????????????????????????? | | ?????????????????????????????????????????????????? | | ?????????????????????????????????????????????????? | +----------------------------------------------------+ Best States ------------- Heat Dissipation 28 Energy Generation 10 Energy Capacity 125 Matter Stores 300 Matter Capacity 300 Sight Range 16 Terrain Scan Density 10 Armor Coverage 375 Evasion (%) 44 Recoil Reduction 1 Item Schematics ----------------- None Robot Schematics ------------------ None Fabricated ------------ Nothing Alien Tech Used ----------------- None Achievements -------------- None Challenges ------------ None Game ------ Seed StorageAutogunFilter Manual? 0 Play Time 00:07:59 Cumulative 807.5 hours Start 2019.11.02 @ 23:21:04 End 2019.11.02 @ 23:28:45 Sessions 1 Manual Loads 0 Difficulty Rogue Special Mode Halloween2019/Abominations Game No. 304 Rogue 304 Adventurer 0 Explorer 0 Win Type - Total 20 Types 10/1/7/0/0/0/2 Lore% 95 Gallery% 94 Achievement% 79 Wizard Run 0 Options --------- ASCII 0 Keyboard 1 Movement Vi Keybinds 0 Fullscreen 0 Font 12/Crisp Map View 76x50 Tactical HUD 1 Map Filters NONE Filters NONE Steam X RUN: a835b506-936d-429a-8cf1-3642bd47c8c1